[Event "Early-Titled-Tuesday-Blitz-November-28-2023"]
[Site "Chess.com"]
[Date "2023.11.28"]
[Round "5"]
[White "Andrei_Skvortsov"]
[Black "jeetjain"]
[Result "1-0"]
[WhiteElo "2732"]
[BlackElo "2541"]
[TimeControl "180+1"]
[EndTime "9:00:03 PST"]
[Termination "Andrei_Skvortsov won on time"]

1. e4 {[%clk 0:03:00.9]} 1... c6 {[%clk 0:02:59.5]} 2. e5 {[%clk 0:02:57.6]}
2... d5 {[%clk 0:02:58.3]} 3. exd6 {[%clk 0:02:58.5]} 3... exd6 {[%clk
0:02:58.3]} 4. d4 {[%clk 0:02:58.7]} 4... d5 {[%clk 0:02:58.7]} 5. Nf3 {[%clk
0:02:59.3]} 5... Nf6 {[%clk 0:02:59.2]} 6. Bd3 {[%clk 0:02:59.6]} 6... Bd6
{[%clk 0:02:59.8]} 7. Qe2+ {[%clk 0:02:59.5]} 7... Qe7 {[%clk 0:02:59.5]} 8.
Qxe7+ {[%clk 0:02:59.1]} 8... Bxe7 {[%clk 0:02:58.7]} 9. O-O {[%clk 0:02:57.8]}
9... O-O {[%clk 0:02:58.5]} 10. Re1 {[%clk 0:02:58.1]} 10... Bd6 {[%clk
0:02:57]} 11. Bg5 {[%clk 0:02:57]} 11... Nbd7 {[%clk 0:02:56.2]} 12. Nc3 {[%clk
0:02:54.3]} 12... h6 {[%clk 0:02:55.3]} 13. Bh4 {[%clk 0:02:54.1]} 13... Re8
{[%clk 0:02:54.4]} 14. Rxe8+ {[%clk 0:02:51.9]} 14... Nxe8 {[%clk 0:02:55.3]}
15. Re1 {[%clk 0:02:37.2]} 15... Ndf6 {[%clk 0:02:53.1]} 16. Ne5 {[%clk
0:02:36.9]} 16... Be6 {[%clk 0:02:51.3]} 17. a3 {[%clk 0:02:25.9]} 17... a5
{[%clk 0:02:47.9]} 18. Na4 {[%clk 0:02:23.6]} 18... g5 {[%clk 0:02:25.8]} 19.
Bg3 {[%clk 0:02:17.3]} 19... Nh5 {[%clk 0:02:21.6]} 20. Nb6 {[%clk 0:02:12.5]}
20... Rd8 {[%clk 0:02:19.3]} 21. f3 {[%clk 0:01:57.9]} 21... Nxg3 {[%clk
0:02:18.1]} 22. hxg3 {[%clk 0:01:58]} 22... Ng7 {[%clk 0:02:10.3]} 23. g4 {[%clk
0:01:52.3]} 23... f6 {[%clk 0:02:01.9]} 24. Ng6 {[%clk 0:01:51.2]} 24... Bf7
{[%clk 0:01:51.1]} 25. Ne7+ {[%clk 0:01:49.5]} 25... Kf8 {[%clk 0:01:45.6]} 26.
Nf5 {[%clk 0:01:47.7]} 26... Nxf5 {[%clk 0:01:44.7]} 27. Bxf5 {[%clk 0:01:45.3]}
27... Bc7 {[%clk 0:01:37.5]} 28. Nd7+ {[%clk 0:01:43.2]} 28... Kg7 {[%clk
0:01:36.1]} 29. Nc5 {[%clk 0:01:39.5]} 29... b6 {[%clk 0:01:31.8]} 30. Re7
{[%clk 0:01:38.2]} 30... bxc5 {[%clk 0:01:31.6]} 31. Rxc7 {[%clk 0:01:37.7]}
31... cxd4 {[%clk 0:01:28.8]} 32. Be6 {[%clk 0:01:26.7]} 32... Rf8 {[%clk
0:01:28.4]} 33. Kf2 {[%clk 0:01:26.8]} 33... Kg6 {[%clk 0:01:26.2]} 34. Bf5+
{[%clk 0:01:22.6]} 34... Kg7 {[%clk 0:01:26.2]} 35. Rxc6 {[%clk 0:01:16.3]}
35... Be8 {[%clk 0:00:46.9]} 36. Rc7+ {[%clk 0:01:15.2]} 36... Rf7 {[%clk
0:00:46.7]} 37. Rxf7+ {[%clk 0:01:12.5]} 37... Kxf7 {[%clk 0:00:46.8]} 38. Ke2
{[%clk 0:01:11.9]} 38... Bb5+ {[%clk 0:00:43.3]} 39. Bd3 {[%clk 0:01:11.4]}
39... Bd7 {[%clk 0:00:28.8]} 40. Ba6 {[%clk 0:01:05.7]} 40... Ke6 {[%clk
0:00:27.4]} 41. b4 {[%clk 0:01:00.7]} 41... axb4 {[%clk 0:00:17.3]} 42. axb4
{[%clk 0:01:01.6]} 42... Kd6 {[%clk 0:00:15.6]} 43. Kd3 {[%clk 0:01:01.6]} 43...
Ke5 {[%clk 0:00:12.8]} 44. b5 {[%clk 0:01:02]} 44... f5 {[%clk 0:00:11]} 45. b6
{[%clk 0:01:02]} 45... Kd6 {[%clk 0:00:07.9]} 46. b7 {[%clk 0:00:56.7]} 46...
Kc7 {[%clk 0:00:07.6]} 47. gxf5 {[%clk 0:00:54.5]} 47... Bxf5+ {[%clk
0:00:08.2]} 48. Kxd4 {[%clk 0:00:54.6]} 48... Bxc2 {[%clk 0:00:08.2]} 49. Kxd5
{[%clk 0:00:51.1]} 49... h5 {[%clk 0:00:08.6]} 50. Ke5 {[%clk 0:00:44.3]} 50...
g4 {[%clk 0:00:08.8]} 51. fxg4 {[%clk 0:00:30.8]} 51... hxg4 {[%clk 0:00:09.4]}
52. g3 {[%clk 0:00:31.4]} 52... Bd1 {[%clk 0:00:09]} 53. Ke4 {[%clk 0:00:28.5]}
53... Bf3+ {[%clk 0:00:08.8]} 54. Kf4 {[%clk 0:00:27.6]} 54... Bd1 {[%clk
0:00:08.4]} 55. Ke3 {[%clk 0:00:24.3]} 55... Ba4 {[%clk 0:00:06.6]} 56. Kd4
{[%clk 0:00:21]} 56... Bd7 {[%clk 0:00:06]} 57. Ke5 {[%clk 0:00:20.1]} 57... Ba4
{[%clk 0:00:02.3]} 58. Be2 {[%clk 0:00:18.8]} 58... Kxb7 {[%clk 0:00:02.1]} 59.
Kd6 {[%clk 0:00:16.9]} 59... Kb6 {[%clk 0:00:02.1]} 60. Bxg4 {[%clk 0:00:16.2]}
60... Bc2 {[%clk 0:00:02.7]} 61. Be2 {[%clk 0:00:14.6]} 61... Kb7 {[%clk
0:00:03]} 62. g4 {[%clk 0:00:14.5]} 62... Kc8 {[%clk 0:00:03.4]} 63. Ke7 {[%clk
0:00:14.6]} 63... Kc7 {[%clk 0:00:03.7]} 64. Bc4 {[%clk 0:00:13.9]} 64... Kc6
{[%clk 0:00:03.9]} 65. Be6 {[%clk 0:00:14]} 65... Kc5 {[%clk 0:00:03.8]} 66. Bf5
{[%clk 0:00:14.4]} 66... Bd1 {[%clk 0:00:04.1]} 67. g5 {[%clk 0:00:14.8]} 67...
Bh5 {[%clk 0:00:04.7]} 68. Ke6 {[%clk 0:00:14.2]} 68... Kd4 {[%clk 0:00:05.1]}
69. Kf6 {[%clk 0:00:14.8]} 69... Ke3 {[%clk 0:00:05.3]} 70. Bg6 {[%clk
0:00:12.8]} 70... Be2 {[%clk 0:00:05.5]} 71. Bf7 {[%clk 0:00:12]} 71... Bd3
{[%clk 0:00:05.2]} 72. Ke5 {[%clk 0:00:12.3]} 72... Kf3 {[%clk 0:00:04.9]} 73.
Be6 {[%clk 0:00:12.8]} 73... Kg3 {[%clk 0:00:04.8]} 74. Bf5 {[%clk 0:00:12.9]}
74... Bc4 {[%clk 0:00:05.3]} 75. g6 {[%clk 0:00:13.2]} 75... Kh4 {[%clk
0:00:05.9]} 76. Kf6 {[%clk 0:00:12.1]} 76... Bb3 {[%clk 0:00:05.9]} 77. Be6
{[%clk 0:00:11.8]} 77... Bc2 {[%clk 0:00:06.4]} 78. Bf5 {[%clk 0:00:10.3]} 78...
Bb3 {[%clk 0:00:05.8]} 79. g7 {[%clk 0:00:10.8]} 79... Kh5 {[%clk 0:00:05.1]}
80. Be6 {[%clk 0:00:10.2]} 1-0

[Event "Early-Titled-Tuesday-Blitz-November-28-2023"]
[Site "Chess.com"]
[Date "2023.11.28"]
[Round "6"]
[White "campochess"]
[Black "esrosenberg"]
[Result "0-1"]
[WhiteElo "2226"]
[BlackElo "2392"]
[TimeControl "180+1"]
[EndTime "9:07:55 PST"]
[Termination "esrosenberg won by resignation"]

1. e4 {[%clk 0:02:59.8]} 1... e5 {[%clk 0:02:57.7]} 2. d4 {[%clk 0:02:59.1]}
2... exd4 {[%clk 0:02:56.5]} 3. Qxd4 {[%clk 0:02:58.9]} 3... Nc6 {[%clk
0:02:56.3]} 4. Qe3 {[%clk 0:02:58.8]} 4... Nf6 {[%clk 0:02:57]} 5. Nc3 {[%clk
0:02:58.5]} 5... Bb4 {[%clk 0:02:57.7]} 6. Bd2 {[%clk 0:02:58]} 6... O-O {[%clk
0:02:57.6]} 7. O-O-O {[%clk 0:02:57.7]} 7... Re8 {[%clk 0:02:58.3]} 8. f3 {[%clk
0:02:57]} 8... d5 {[%clk 0:02:52.2]} 9. Qg5 {[%clk 0:02:51.7]} 9... d4 {[%clk
0:02:10.2]} 10. Nd5 {[%clk 0:02:48.8]} 10... Bxd2+ {[%clk 0:02:09.2]} 11. Rxd2
{[%clk 0:02:46.4]} 11... Nxd5 {[%clk 0:02:09.3]} 12. exd5 {[%clk 0:02:38.3]}
12... Qxg5 {[%clk 0:02:08.6]} 0-1

[Event "Early-Titled-Tuesday-Blitz-November-28-2023"]
[Site "Chess.com"]
[Date "2023.11.28"]
[Round "6"]
[White "lrestevez"]
[Black "YouShallNotPass001"]
[Result "0-1"]
[WhiteElo "2180"]
[BlackElo "2455"]
[TimeControl "180+1"]
[EndTime "9:08:03 PST"]
[Termination "YouShallNotPass001 won by resignation"]

1. e4 {[%clk 0:02:45.6]} 1... d6 {[%clk 0:02:59.2]} 2. d4 {[%clk 0:02:44.7]}
2... g6 {[%clk 0:03:00.1]} 3. Nc3 {[%clk 0:02:44.6]} 3... Bg7 {[%clk 0:03:00.7]}
4. Be3 {[%clk 0:02:45.1]} 4... e6 {[%clk 0:03:01.5]} 5. Qd2 {[%clk 0:02:45.7]}
5... b6 {[%clk 0:03:01.3]} 6. O-O-O {[%clk 0:02:46.1]} 6... a6 {[%clk
0:03:01.9]} 7. f4 {[%clk 0:02:46.6]} 7... b5 {[%clk 0:03:02.3]} 8. f5 {[%clk
0:02:44.5]} 8... exf5 {[%clk 0:03:01.4]} 9. exf5 {[%clk 0:02:44.6]} 9... Bxf5
{[%clk 0:03:01.7]} 10. Bd3 {[%clk 0:02:44.8]} 10... Bxd3 {[%clk 0:03:01.3]} 11.
Qxd3 {[%clk 0:02:45.1]} 11... Ne7 {[%clk 0:02:59.4]} 12. h4 {[%clk 0:02:43.7]}
12... h5 {[%clk 0:02:57.8]} 13. g4 {[%clk 0:02:43.2]} 13... hxg4 {[%clk
0:02:57]} 14. h5 {[%clk 0:02:43.4]} 14... gxh5 {[%clk 0:02:53]} 15. Nge2 {[%clk
0:02:42.6]} 15... Qd7 {[%clk 0:02:49.1]} 16. Ng3 {[%clk 0:02:42.2]} 16... h4
{[%clk 0:02:45.5]} 17. Nge4 {[%clk 0:02:42]} 17... Nbc6 {[%clk 0:02:41.9]} 18.
Kb1 {[%clk 0:02:41.6]} 18... O-O-O {[%clk 0:02:38]} 19. Ng5 {[%clk 0:02:41.3]}
19... Nf5 {[%clk 0:02:34]} 20. Bf4 {[%clk 0:02:36.6]} 20... Ncxd4 {[%clk
0:02:30.7]} 21. Qe4 {[%clk 0:02:35.1]} 21... d5 {[%clk 0:02:28.7]} 22. Qg2
{[%clk 0:02:27.4]} 0-1

[Event "Early-Titled-Tuesday-Blitz-November-28-2023"]
[Site "Chess.com"]
[Date "2023.11.28"]
[Round "6"]
[White "amanjazu"]
[Black "kai_nov"]
[Result "1-0"]
[WhiteElo "2398"]
[BlackElo "2235"]
[TimeControl "180+1"]
[EndTime "9:08:33 PST"]
[Termination "amanjazu won by resignation"]

1. g3 {[%clk 0:03:00.9]} 1... e5 {[%clk 0:02:56.2]} 2. Bg2 {[%clk 0:03:00.8]}
2... d5 {[%clk 0:02:54.1]} 3. e3 {[%clk 0:03:01.2]} 3... Nf6 {[%clk 0:02:53.6]}
4. d4 {[%clk 0:03:01.6]} 4... exd4 {[%clk 0:02:53.1]} 5. exd4 {[%clk 0:03:01.7]}
5... Bd6 {[%clk 0:02:51]} 6. Ne2 {[%clk 0:03:00.5]} 6... O-O {[%clk 0:02:51.4]}
7. O-O {[%clk 0:02:58.2]} 7... c6 {[%clk 0:02:51.9]} 8. c4 {[%clk 0:02:56.1]}
8... Be6 {[%clk 0:02:48.9]} 9. Nbc3 {[%clk 0:02:52.5]} 9... dxc4 {[%clk
0:02:40.5]} 10. Bg5 {[%clk 0:02:51.9]} 10... h6 {[%clk 0:02:29]} 11. Bxf6 {[%clk
0:02:12.3]} 11... Qxf6 {[%clk 0:02:27.3]} 12. d5 {[%clk 0:02:11.9]} 12... cxd5
{[%clk 0:02:12.8]} 13. Nxd5 {[%clk 0:02:11.1]} 13... Nc6 {[%clk 0:02:05.8]} 14.
Nxf6+ {[%clk 0:02:10.3]} 1-0

[Event "Early-Titled-Tuesday-Blitz-November-28-2023"]
[Site "Chess.com"]
[Date "2023.11.28"]
[Round "6"]
[White "viktorgen2021"]
[Black "Akylbek2021"]
[Result "1-0"]
[WhiteElo "2471"]
[BlackElo "2230"]
[TimeControl "180+1"]
[EndTime "9:09:33 PST"]
[Termination "viktorgen2021 won by resignation"]

1. d4 {[%clk 0:02:53.2]} 1... Nf6 {[%clk 0:02:58.1]} 2. Nf3 {[%clk 0:02:51.8]}
2... g6 {[%clk 0:02:57.8]} 3. g3 {[%clk 0:02:51.3]} 3... Bg7 {[%clk 0:02:58]} 4.
Bg2 {[%clk 0:02:52.2]} 4... d5 {[%clk 0:02:58.6]} 5. O-O {[%clk 0:02:53.1]} 5...
O-O {[%clk 0:02:59.1]} 6. c4 {[%clk 0:02:53.4]} 6... c6 {[%clk 0:02:59.7]} 7.
cxd5 {[%clk 0:02:53.6]} 7... cxd5 {[%clk 0:03:00.6]} 8. Nc3 {[%clk 0:02:53.6]}
8... Nc6 {[%clk 0:02:59.9]} 9. Ne5 {[%clk 0:02:52.7]} 9... Nd7 {[%clk
0:02:57.7]} 10. Nxc6 {[%clk 0:02:51.6]} 10... bxc6 {[%clk 0:02:58.6]} 11. e4
{[%clk 0:02:52.2]} 11... Ba6 {[%clk 0:02:39.1]} 12. Re1 {[%clk 0:02:47.8]} 12...
Nb6 {[%clk 0:02:39]} 13. exd5 {[%clk 0:02:45.1]} 13... cxd5 {[%clk 0:02:39.9]}
14. Bg5 {[%clk 0:02:43.4]} 14... h6 {[%clk 0:02:36.8]} 15. Bxe7 {[%clk
0:02:41.1]} 15... Qd7 {[%clk 0:02:32.1]} 16. Bxf8 {[%clk 0:02:40.1]} 16... Rxf8
{[%clk 0:02:33]} 17. Qf3 {[%clk 0:02:37.5]} 17... Bc4 {[%clk 0:02:19.5]} 18. b3
{[%clk 0:02:34.8]} 18... Ba6 {[%clk 0:02:16.5]} 19. Nxd5 {[%clk 0:02:29.6]}
19... Bxd4 {[%clk 0:01:58.3]} 20. Rad1 {[%clk 0:02:26.6]} 20... Qxd5 {[%clk
0:01:39]} 21. Qxd5 {[%clk 0:02:22.7]} 21... Nxd5 {[%clk 0:01:39.1]} 22. Bxd5
{[%clk 0:02:23.4]} 22... Bf6 {[%clk 0:01:34.1]} 23. Bc4 {[%clk 0:02:18]} 23...
Bb7 {[%clk 0:01:32.4]} 24. Rd7 {[%clk 0:02:15.5]} 1-0

[Event "Early-Titled-Tuesday-Blitz-November-28-2023"]
[Site "Chess.com"]
[Date "2023.11.28"]
[Round "6"]
[White "Willi_Skibbe"]
[Black "Dream2World_Number1"]
[Result "1-0"]
[WhiteElo "2281"]
[BlackElo "2635"]
[TimeControl "180+1"]
[EndTime "9:09:44 PST"]
[Termination "Willi_Skibbe won by resignation"]

1. e4 {[%clk 0:03:00.9]} 1... c5 {[%clk 0:02:59.8]} 2. c3 {[%clk 0:03:00.7]}
2... Nc6 {[%clk 0:02:56]} 3. Nf3 {[%clk 0:03:00]} 3... Nf6 {[%clk 0:02:55.4]} 4.
e5 {[%clk 0:02:59.6]} 4... Nd5 {[%clk 0:02:56.1]} 5. Bc4 {[%clk 0:03:00.2]} 5...
e6 {[%clk 0:02:56]} 6. d4 {[%clk 0:02:58.8]} 6... cxd4 {[%clk 0:02:54.7]} 7.
cxd4 {[%clk 0:02:58.4]} 7... d6 {[%clk 0:02:55.2]} 8. O-O {[%clk 0:02:56.6]}
8... Be7 {[%clk 0:02:54.1]} 9. Qe2 {[%clk 0:02:56.4]} 9... O-O {[%clk
0:02:51.4]} 10. Rd1 {[%clk 0:02:56.6]} 10... b6 {[%clk 0:02:44.9]} 11. Nc3
{[%clk 0:02:52.5]} 11... Nxc3 {[%clk 0:02:44.5]} 12. bxc3 {[%clk 0:02:52.9]}
12... Bb7 {[%clk 0:02:44.5]} 13. Bf4 {[%clk 0:02:51.7]} 13... Rc8 {[%clk
0:02:42.5]} 14. Bd3 {[%clk 0:02:51.2]} 14... dxe5 {[%clk 0:02:33.4]} 15. dxe5
{[%clk 0:02:43.3]} 15... Qc7 {[%clk 0:02:33.1]} 16. Ng5 {[%clk 0:02:37.3]} 16...
h6 {[%clk 0:02:30.7]} 17. Qe4 {[%clk 0:02:21.2]} 17... g6 {[%clk 0:02:23.3]} 18.
Nxe6 {[%clk 0:01:59.4]} 18... Na5 {[%clk 0:02:15.7]} 19. Nxc7 {[%clk 0:01:49.7]}
19... Bxe4 {[%clk 0:02:16]} 20. Bxe4 {[%clk 0:01:49.9]} 20... Rxc7 {[%clk
0:02:16.7]} 21. Bxh6 {[%clk 0:01:50.6]} 21... Rfc8 {[%clk 0:02:16.9]} 22. g3
{[%clk 0:01:28.9]} 22... Rxc3 {[%clk 0:02:15.6]} 23. Rd7 {[%clk 0:01:28.2]}
23... R8c7 {[%clk 0:02:14.5]} 24. Rad1 {[%clk 0:01:27.4]} 24... Rc1 {[%clk
0:01:57.4]} 25. Bxc1 {[%clk 0:01:26.3]} 1-0

[Event "Early-Titled-Tuesday-Blitz-November-28-2023"]
[Site "Chess.com"]
[Date "2023.11.28"]
[Round "6"]
[White "Sulthankan"]
[Black "The_Sherman_Variation"]
[Result "1-0"]
[WhiteElo "2361"]
[BlackElo "2506"]
[TimeControl "180+1"]
[EndTime "9:09:47 PST"]
[Termination "Sulthankan won by resignation"]

1. d4 {[%clk 0:03:00.9]} 1... e6 {[%clk 0:02:54.6]} 2. c4 {[%clk 0:03:01]} 2...
Nf6 {[%clk 0:02:53.2]} 3. Nf3 {[%clk 0:02:59.2]} 3... b6 {[%clk 0:02:50.4]} 4.
a3 {[%clk 0:02:58.2]} 4... Bb7 {[%clk 0:02:48.6]} 5. Nc3 {[%clk 0:02:57.5]} 5...
d5 {[%clk 0:02:40.8]} 6. cxd5 {[%clk 0:02:50]} 6... Nxd5 {[%clk 0:02:41.7]} 7.
e3 {[%clk 0:02:49.4]} 7... Be7 {[%clk 0:02:37.1]} 8. Bb5+ {[%clk 0:02:47.1]}
8... c6 {[%clk 0:02:36]} 9. Bd3 {[%clk 0:02:47.1]} 9... O-O {[%clk 0:02:34.6]}
10. O-O {[%clk 0:02:46.7]} 10... c5 {[%clk 0:02:34.7]} 11. e4 {[%clk 0:02:45.6]}
11... Nxc3 {[%clk 0:02:34.6]} 12. bxc3 {[%clk 0:02:46.5]} 12... cxd4 {[%clk
0:02:26.4]} 13. cxd4 {[%clk 0:02:45.8]} 13... Nc6 {[%clk 0:02:26.6]} 14. Bb2
{[%clk 0:02:40.5]} 14... Rc8 {[%clk 0:02:25.9]} 15. Re1 {[%clk 0:02:20.1]} 15...
Bf6 {[%clk 0:02:16.7]} 16. Bb1 {[%clk 0:02:13.3]} 16... Na5 {[%clk 0:02:10]} 17.
Qd3 {[%clk 0:02:04.3]} 17... g6 {[%clk 0:02:07.9]} 18. Ba2 {[%clk 0:02:02.8]}
18... Qd7 {[%clk 0:02:00.5]} 19. d5 {[%clk 0:01:45.1]} 19... exd5 {[%clk
0:02:00.2]} 20. Bxf6 {[%clk 0:01:43.9]} 20... Qc6 {[%clk 0:01:55]} 21. e5 {[%clk
0:01:38.7]} 21... Nc4 {[%clk 0:01:49.8]} 22. Bxc4 {[%clk 0:01:34.1]} 22... dxc4
{[%clk 0:01:49.7]} 23. Qe3 {[%clk 0:01:33.5]} 23... c3 {[%clk 0:01:49.5]} 24.
Qh6 {[%clk 0:01:33.4]} 1-0

[Event "Early-Titled-Tuesday-Blitz-November-28-2023"]
[Site "Chess.com"]
[Date "2023.11.28"]
[Round "6"]
[White "FischerKasparow"]
[Black "Nancy11111"]
[Result "1-0"]
[WhiteElo "2098"]
[BlackElo "2280"]
[TimeControl "180+1"]
[EndTime "9:10:11 PST"]
[Termination "FischerKasparow won by checkmate"]

1. e4 {[%clk 0:03:00.9]} 1... d6 {[%clk 0:03:00.9]} 2. d4 {[%clk 0:03:00.7]}
2... Nf6 {[%clk 0:03:01.2]} 3. Nc3 {[%clk 0:03:01.1]} 3... g6 {[%clk 0:03:01.6]}
4. Be3 {[%clk 0:03:00.4]} 4... Bg7 {[%clk 0:03:02.1]} 5. Qd2 {[%clk 0:03:00.7]}
5... c6 {[%clk 0:03:00.4]} 6. h3 {[%clk 0:02:57.6]} 6... Nbd7 {[%clk 0:03:00]}
7. Bd3 {[%clk 0:02:56.7]} 7... e5 {[%clk 0:03:00.4]} 8. Nf3 {[%clk 0:02:56.5]}
8... exd4 {[%clk 0:03:00]} 9. Nxd4 {[%clk 0:02:55.9]} 9... Nc5 {[%clk 0:02:57]}
10. O-O-O {[%clk 0:02:55]} 10... O-O {[%clk 0:02:56.5]} 11. Bh6 {[%clk
0:02:49.3]} 11... Re8 {[%clk 0:02:54.5]} 12. Bxg7 {[%clk 0:02:47.1]} 12... Kxg7
{[%clk 0:02:55.4]} 13. f3 {[%clk 0:02:41.5]} 13... Nxd3+ {[%clk 0:02:53.9]} 14.
cxd3 {[%clk 0:02:31.3]} 14... d5 {[%clk 0:02:53.9]} 15. Kb1 {[%clk 0:02:28.2]}
15... dxe4 {[%clk 0:02:52.4]} 16. dxe4 {[%clk 0:02:25.6]} 16... c5 {[%clk
0:02:52.3]} 17. Nf5+ {[%clk 0:02:18.9]} 17... Bxf5 {[%clk 0:02:51.4]} 18. exf5
{[%clk 0:02:16.1]} 18... Qxd2 {[%clk 0:02:48.8]} 19. Rxd2 {[%clk 0:02:16]} 19...
gxf5 {[%clk 0:02:49.7]} 20. Rhd1 {[%clk 0:02:03.4]} 20... Re7 {[%clk 0:02:49.5]}
21. Nd5 {[%clk 0:01:57.6]} 21... Re6 {[%clk 0:02:41]} 22. Nc7 {[%clk 0:01:54.4]}
22... Rc8 {[%clk 0:02:28.7]} 23. Nxe6+ {[%clk 0:01:53.7]} 23... fxe6 {[%clk
0:02:29.6]} 24. Rd6 {[%clk 0:01:49.3]} 24... Kf7 {[%clk 0:02:29.1]} 25. f4
{[%clk 0:01:49.3]} 25... b6 {[%clk 0:02:27.6]} 26. g4 {[%clk 0:01:48.2]} 26...
fxg4 {[%clk 0:02:26.1]} 27. hxg4 {[%clk 0:01:48.4]} 27... Rc7 {[%clk 0:02:23.3]}
28. g5 {[%clk 0:01:47.5]} 28... Nd5 {[%clk 0:02:22.8]} 29. f5 {[%clk 0:01:39.8]}
29... Ne3 {[%clk 0:02:19.1]} 30. Rd7+ {[%clk 0:01:37.8]} 30... Rxd7 {[%clk
0:02:18.8]} 31. Rxd7+ {[%clk 0:01:38.6]} 31... Ke8 {[%clk 0:02:17.6]} 32. fxe6
{[%clk 0:01:30.8]} 32... b5 {[%clk 0:02:08.8]} 33. Rxh7 {[%clk 0:01:29.9]} 33...
a5 {[%clk 0:02:08.6]} 34. g6 {[%clk 0:01:30.1]} 34... Kf8 {[%clk 0:02:07.3]} 35.
e7+ {[%clk 0:01:23.6]} 35... Kg8 {[%clk 0:02:05.9]} 36. e8=Q# {[%clk 0:01:22.1]}
1-0

[Event "Early-Titled-Tuesday-Blitz-November-28-2023"]
[Site "Chess.com"]
[Date "2023.11.28"]
[Round "6"]
[White "deepfear"]
[Black "Orishuas"]
[Result "0-1"]
[WhiteElo "1917"]
[BlackElo "2298"]
[TimeControl "180+1"]
[EndTime "9:10:19 PST"]
[Termination "Orishuas won by resignation"]

1. e4 {[%clk 0:02:59.2]} 1... c5 {[%clk 0:02:58.6]} 2. Nc3 {[%clk 0:02:56.5]}
2... a6 {[%clk 0:02:53.8]} 3. a4 {[%clk 0:02:52.9]} 3... Nc6 {[%clk 0:02:52.3]}
4. g3 {[%clk 0:02:51.6]} 4... g6 {[%clk 0:02:51.9]} 5. Bg2 {[%clk 0:02:51.6]}
5... Bg7 {[%clk 0:02:52.5]} 6. d3 {[%clk 0:02:51.6]} 6... e6 {[%clk 0:02:52.5]}
7. Be3 {[%clk 0:02:51.5]} 7... d6 {[%clk 0:02:51.6]} 8. Qd2 {[%clk 0:02:45.5]}
8... Nge7 {[%clk 0:02:44.3]} 9. Nf3 {[%clk 0:02:43.9]} 9... Nd4 {[%clk
0:02:39.6]} 10. O-O {[%clk 0:02:36.9]} 10... Nec6 {[%clk 0:02:36.4]} 11. Bg5
{[%clk 0:01:45.5]} 11... f6 {[%clk 0:02:26.9]} 12. Be3 {[%clk 0:01:40.5]} 12...
O-O {[%clk 0:02:22.4]} 13. Ne1 {[%clk 0:01:30.1]} 13... e5 {[%clk 0:02:02.7]}
14. Bh6 {[%clk 0:01:20.6]} 14... Be6 {[%clk 0:01:56]} 15. f4 {[%clk 0:01:14.8]}
15... Bxh6 {[%clk 0:01:37.3]} 0-1

[Event "Early-Titled-Tuesday-Blitz-November-28-2023"]
[Site "Chess.com"]
[Date "2023.11.28"]
[Round "6"]
[White "M1711"]
[Black "Niilo1"]
[Result "1-0"]
[WhiteElo "2609"]
[BlackElo "2310"]
[TimeControl "180+1"]
[EndTime "9:10:23 PST"]
[Termination "M1711 won by checkmate"]

1. e4 {[%clk 0:03:00]} 1... e5 {[%clk 0:02:58.6]} 2. Nf3 {[%clk 0:02:59.6]} 2...
Nc6 {[%clk 0:02:57.6]} 3. Nc3 {[%clk 0:02:59.8]} 3... Nf6 {[%clk 0:02:57.5]} 4.
d4 {[%clk 0:02:58.1]} 4... exd4 {[%clk 0:02:57.4]} 5. Nd5 {[%clk 0:02:58.8]}
5... Nxd5 {[%clk 0:02:34.1]} 6. exd5 {[%clk 0:02:58.4]} 6... Qe7+ {[%clk
0:02:34.7]} 7. Be2 {[%clk 0:02:57.5]} 7... Ne5 {[%clk 0:02:20.9]} 8. O-O {[%clk
0:02:54.5]} 8... d6 {[%clk 0:02:21.1]} 9. Nxd4 {[%clk 0:02:52.7]} 9... Bd7
{[%clk 0:02:16.7]} 10. Re1 {[%clk 0:02:18.4]} 10... O-O-O {[%clk 0:02:16.3]} 11.
Be3 {[%clk 0:02:10.1]} 11... Kb8 {[%clk 0:02:08.7]} 12. Qd2 {[%clk 0:02:05]}
12... h6 {[%clk 0:01:55]} 13. Qa5 {[%clk 0:01:55.7]} 13... Bc8 {[%clk 0:01:20]}
14. f4 {[%clk 0:01:17.7]} 14... Ng6 {[%clk 0:01:17.8]} 15. Nc6+ {[%clk 0:01:03]}
15... bxc6 {[%clk 0:01:17]} 16. Qxa7# {[%clk 0:01:03.9]} 1-0

[Event "Early-Titled-Tuesday-Blitz-November-28-2023"]
[Site "Chess.com"]
[Date "2023.11.28"]
[Round "6"]
[White "Rumpel-VK"]
[Black "atbenina64"]
[Result "0-1"]
[WhiteElo "2549"]
[BlackElo "2772"]
[TimeControl "180+1"]
[EndTime "9:10:39 PST"]
[Termination "atbenina64 won on time"]

1. Nf3 {[%clk 0:02:59]} 1... Nf6 {[%clk 0:03:00.1]} 2. b3 {[%clk 0:02:58.7]}
2... g6 {[%clk 0:03:00.1]} 3. Bb2 {[%clk 0:02:59.1]} 3... Bg7 {[%clk 0:03:01]}
4. g3 {[%clk 0:02:59.6]} 4... d6 {[%clk 0:02:54.8]} 5. Bxf6 {[%clk 0:02:55.5]}
5... Bxf6 {[%clk 0:02:54.7]} 6. d4 {[%clk 0:02:54.7]} 6... c5 {[%clk 0:02:52.5]}
7. c3 {[%clk 0:02:13.6]} 7... cxd4 {[%clk 0:02:52.4]} 8. cxd4 {[%clk 0:02:13.8]}
8... Nc6 {[%clk 0:02:48.5]} 9. Bg2 {[%clk 0:02:10.4]} 9... Qa5+ {[%clk
0:02:46.5]} 10. Qd2 {[%clk 0:02:09.5]} 10... Qxd2+ {[%clk 0:02:45.3]} 11. Nbxd2
{[%clk 0:02:08.6]} 11... Nxd4 {[%clk 0:02:45.7]} 12. Nxd4 {[%clk 0:02:07.7]}
12... Bxd4 {[%clk 0:02:46.6]} 13. Rc1 {[%clk 0:02:07.9]} 13... Rb8 {[%clk
0:02:44.2]} 14. e3 {[%clk 0:02:06.3]} 14... Bc5 {[%clk 0:02:36.8]} 15. Ne4
{[%clk 0:02:05.2]} 15... Bb4+ {[%clk 0:02:32]} 16. Ke2 {[%clk 0:02:02.2]} 16...
Bd7 {[%clk 0:02:25.7]} 17. Rc7 {[%clk 0:01:51.5]} 17... Bb5+ {[%clk 0:02:23.2]}
18. Kf3 {[%clk 0:01:49.6]} 18... Bc6 {[%clk 0:02:18.8]} 19. Kf4 {[%clk
0:01:46.9]} 19... d5 {[%clk 0:02:13]} 0-1